fUST/lending_fUST_20250708
["ID","MTS","AMOUNT","RATE_DAILY","PERIOD"]
[370226294,1751917846913,-460.0,0.0002,2]
[370226296,1751917846923,-460.0,0.0002,2]
[370226298,1751917846933,-460.0,0.0002,2]
[370226300,1751917846943,-460.0,0.0002,2]
[370226301,1751917846953,-460.0,0.0002,2]
[370226303,1751917846962,-467.02,0.0002,2]
[370226305,1751917846972,-460.0,0.0002,2]
[370226307,1751917846981,-460.0,0.0002,2]
[370226309,1751917846990,-460.0,0.0002,2]
[370226311,1751917846999,-460.0,0.0002,2]
[370226313,1751917847009,-460.0,0.0002,2]
[370226315,1751917847020,-460.0,0.0002,2]
[370226317,1751917847029,-460.0,0.0002,2]
[370226319,1751917847038,-460.0,0.0002,2]
[370226321,1751917847048,-460.0,0.0002,2]
[370226323,1751917847059,-460.0,0.0002,2]
[370226325,1751917847069,-460.0,0.0002,2]
[370226327,1751917847079,-460.0,0.0002,2]
[370226330,1751917847088,-1961.94,0.0002,2]
[370226332,1751917847098,-460.0,0.0002,2]
[370226334,1751917847108,-460.0,0.0002,2]
[370226335,1751917847117,-1121.76,0.0002,2]
[370226337,1751917847127,-460.0,0.0002,2]
[370226339,1751917847137,-460.0,0.0002,2]
[370226341,1751917847147,-460.0,0.0002,2]
[370226343,1751917847156,-460.0,0.0002,2]
[370226346,1751917847165,-460.0,0.0002,2]
[370226347,1751917847174,-460.0,0.0002,2]
[370226349,1751917847184,-772.99,0.0002,2]
[370226351,1751917847193,-529.06491823,0.0002,2]
[370226353,1751917847203,-460.0,0.0002,2]
[370226355,1751917847212,-151.0,0.0002,2]
[370226357,1751917847222,-909.79,0.0002,2]
[370226359,1751917847231,-1136.17,0.0002,2]
[370226361,1751917847241,-151.0,0.0002,2]
[370226363,1751917847251,-151.0,0.0002,2]
[370226365,1751917847260,-213.902922,0.0002,2]
[370226366,1751917847270,-1463.16,0.0002,2]
[370226367,1751917847279,-460.0,0.0002,2]
[370226368,1751917847288,-460.0,0.0002,2]
[370226369,1751917847298,-460.0,0.0002,2]
[370226370,1751917847308,-460.0,0.0002,2]
[370226371,1751917847318,-460.0,0.0002,2]
[370226372,1751917847327,-485.58,0.0002,2]
[370226373,1751917847336,-460.0,0.0002,2]
[370226374,1751917847346,-305.85,0.0002,2]
[370226375,1751917847355,-460.0,0.0002,2]
[370226376,1751917847364,-460.0,0.0002,2]
[370226377,1751917847374,-813.04,0.0002,2]
[370226378,1751917847384,-1159.48,0.0002,2]
[370226379,1751917847394,-460.0,0.0002,2]
[370226380,1751917847403,-460.0,0.0002,2]
[370226382,1751917847412,-460.0,0.0002,2]
[370226384,1751917847422,-460.0,0.0002,2]
[370226386,1751917847431,-460.0,0.0002,2]
[370226388,1751917847441,-460.0,0.0002,2]
[370226390,1751917847451,-151.0,0.0002,2]
[370226392,1751917847460,-460.0,0.0002,2]
[370226394,1751917847470,-460.0,0.0002,2]
[370226396,1751917847480,-314.6497337,0.0002,2]
[370226398,1751917847490,-871.71,0.0002,2]
[370226400,1751917847500,-904.53,0.0002,2]
[370226402,1751917847509,-460.0,0.0002,2]
[370226404,1751917847519,-460.0,0.0002,2]
[370226406,1751917847528,-460.0,0.0002,2]
[370226408,1751917847537,-460.0,0.0002,2]
[370226410,1751917847547,-460.0,0.0002,2]
[370226412,1751917847557,-1153.31,0.0002,2]
[370226414,1751917847567,-460.0,0.0002,2]
[370226416,1751917847577,-460.0,0.0002,2]
[370226419,1751917847593,-460.0,0.0002,2]
[370226420,1751917847603,-460.0,0.0002,2]
[370226422,1751917847612,-364.46128237,0.0002,2]
[370226424,1751917847622,-460.0,0.0002,2]
[370226426,1751917847632,-1817.98,0.0002,2]
[370226428,1751917847642,-2903.1,0.0002,2]
[370226431,1751917847652,-460.0,0.0002,2]
[370226433,1751917847661,-151.0,0.0002,2]
[370226435,1751917847671,-531.0,0.0002,2]
[370226437,1751917847680,-460.0,0.0002,2]
[370226439,1751917847690,-460.0,0.0002,2]
[370226441,1751917847699,-460.0,0.0002,2]
[370226443,1751917847709,-581.92,0.0002,2]
[370226445,1751917847718,-460.0,0.0002,2]
[370226447,1751917847727,-527.16,0.0002,2]
[370226449,1751917847737,-460.0,0.0002,2]
[370226451,1751917847746,-936.21,0.0002,2]
[370226453,1751917847756,-1377.51,0.0002,2]
[370226455,1751917847765,-460.0,0.0002,2]
[370226457,1751917847775,-460.0,0.0002,2]
[370226459,1751917847784,-460.0,0.0002,2]
[370226461,1751917847795,-460.0,0.0002,2]
[370226463,1751917847805,-2456.52,0.0002,2]
[370226465,1751917847814,-928.84,0.0002,2]
[370226467,1751917847824,-460.0,0.0002,2]
[370226469,1751917847833,-852.23329733,0.00020112,2]
[370226471,1751917847842,-1500.0,0.00020268,2]
[370226473,1751917847856,-500.0,0.00020268,2]
[370226475,1751917847865,-151.0,0.00020273,2]
[370226477,1751917847874,-460.0,0.00020273,2]
[370226479,1751917847884,-460.0,0.00020273,2]
[370226481,1751917847894,-151.0,0.00020273,2]
[370226483,1751917847904,-210.2174,0.00020273,2]
[370226485,1751917847914,-460.0,0.00020273,2]
[370226487,1751917847924,-570.7805892,0.00020273,2]
[370226489,1751917847935,-151.0,0.00020273,2]
[370226491,1751917847945,-151.0,0.00020273,2]
[370226493,1751917847955,-460.0,0.00020273,2]
[370226495,1751917847965,-460.0,0.00020273,2]
[370226497,1751917847974,-460.0,0.00020273,2]
[370226500,1751917847984,-151.0,0.00020273,2]
[370226502,1751917847994,-460.0,0.00020273,2]
[370226504,1751917848003,-602.541065,0.00020273,2]
[370226506,1751917848014,-602.541065,0.00020273,2]
[370226507,1751917848023,-151.0,0.00020273,2]
[370226509,1751917848032,-460.0,0.00020273,2]
[370226511,1751917848042,-460.0,0.00020273,2]
[370226513,1751917848052,-460.0,0.00020273,2]
[370226515,1751917848061,-460.0,0.00020273,2]
[370226517,1751917848071,-460.0,0.00020273,2]
[370226519,1751917848080,-151.0,0.00020273,2]
[370226521,1751917848090,-414.26440547,0.00020273,2]
[370226523,1751917848100,-151.0,0.00020273,2]
[370226525,1751917848109,-151.0,0.00020273,2]
[370226527,1751917848119,-460.0,0.00020273,2]
[370226529,1751917848128,-460.0,0.00020273,2]
[370226531,1751917848139,-1961.94,0.00020273,2]
[370226533,1751917848148,-265.48,0.00020273,2]
[370226535,1751917848158,-460.0,0.00020273,2]
[370226537,1751917848167,-1121.76,0.00020273,2]
[370226539,1751917848176,-460.0,0.00020273,2]
[370226541,1751917848185,-435.13501575,0.00020273,2]
[370226543,1751917848195,-460.0,0.00020273,2]
[370226545,1751917848204,-432.25075342,0.00020273,2]
[370226547,1751917848214,-460.0,0.00020273,2]
[370226549,1751917848223,-460.0,0.00020273,2]
[370226551,1751917848233,-772.99,0.00020273,2]
[370226553,1751917848242,-460.0,0.00020273,2]
[370226555,1751917848252,-909.79,0.00020273,2]
[370226557,1751917848261,-1136.17,0.00020273,2]
[370226559,1751917848271,-245.119118,0.00020273,2]
[370226561,1751917848281,-1463.16,0.00020273,2]
[370226563,1751917848290,-245.119118,0.00020273,2]
[370226565,1751917848300,-228.34617541,0.00020273,2]
[370226567,1751917848310,-460.0,0.00020273,2]
[370226569,1751917848320,-491.2,0.00020273,2]
[370226571,1751917848331,-460.0,0.00020273,2]
[370226573,1751917848340,-813.04,0.00020273,2]
[370226575,1751917848351,-1159.48,0.00020273,2]
[370226577,1751917848360,-460.0,0.00020273,2]
[370226579,1751917848370,-460.0,0.00020273,2]
[370226581,1751917848380,-460.0,0.00020273,2]
[370226583,1751917848391,-460.0,0.00020273,2]
[370226585,1751917848400,-493.62,0.00020273,2]
[370226587,1751917848410,-460.0,0.00020273,2]
[370226589,1751917848420,-460.0,0.00020273,2]
[370226591,1751917848430,-871.71,0.00020273,2]
[370226594,1751917848440,-904.53,0.00020273,2]
[370226595,1751917848449,-460.0,0.00020273,2]
[370226597,1751917848458,-460.0,0.00020273,2]
[370226599,1751917848468,-538.72,0.00020273,2]
[370226601,1751917848477,-460.0,0.00020273,2]
[370226603,1751917848486,-460.0,0.00020273,2]
[370226605,1751917848494,-1153.31,0.00020273,2]
[370226607,1751917848505,-460.0,0.00020273,2]
[370226609,1751917848514,-506.48685554,0.00020273,2]
[370226611,1751917848524,-460.0,0.00020273,2]
[370226613,1751917848534,-460.0,0.00020273,2]
[370226615,1751917848543,-460.0,0.00020273,2]
[370226617,1751917848553,-1817.98,0.00020273,2]
[370226619,1751917848563,-2903.1,0.00020273,2]
[370226621,1751917848573,-531.0,0.00020273,2]
[370226623,1751917848583,-460.0,0.00020273,2]
[370226625,1751917848591,-460.0,0.00020273,2]
[370226627,1751917848601,-527.16,0.00020273,2]
[370226630,1751917848611,-936.21,0.00020273,2]
[370226632,1751917848620,-1377.51,0.00020273,2]
[370226634,1751917848630,-460.0,0.00020273,2]
[370226635,1751917848640,-500.0,0.00020273,2]
[370226638,1751917848650,-2456.52,0.00020273,2]
[370226640,1751917848659,-928.84,0.00020273,2]
[370226642,1751917848669,-460.0,0.00020273,2]
[370226644,1751917848678,-158.4,0.00020528,4]
[370226646,1751917848688,-536.9,0.00020538,3]
[370226648,1751917848698,-500.0,0.00020547,14]
[370226649,1751917848707,-151.0,0.00020547,2]
[370226651,1751917848717,-151.0,0.00020547,2]
[370226653,1751917848727,-151.0,0.00020547,2]
[370226655,1751917848736,-151.0,0.00020547,2]
[370226657,1751917848746,-460.0,0.00020547,2]
[370226659,1751917848756,-460.0,0.00020547,2]
[370226661,1751917848765,-460.0,0.00020547,2]
[370226663,1751917848775,-151.0,0.00020547,2]
[370226666,1751917848784,-460.0,0.00020547,2]
[370226667,1751917848794,-177.9,0.00020547,2]
[370226670,1751917848804,-460.0,0.00020547,2]
[370226672,1751917848813,-259.101356,0.00020547,2]
[370226674,1751917848823,-278.291369,0.00020547,2]
[370226676,1751917848832,-259.101356,0.00020547,2]
[370226677,1751917848841,-278.291369,0.00020547,2]
[370226679,1751917848851,-460.0,0.00020547,2]
[370226681,1751917848863,-466.09,0.00020547,2]
[370226683,1751917848872,-460.0,0.00020547,2]
[370226685,1751917848882,-460.0,0.00020547,2]
[370226687,1751917848892,-460.0,0.00020547,2]
[370226689,1751917848902,-460.0,0.00020547,2]
[370226691,1751917848913,-460.0,0.00020547,2]
[370226693,1751917848923,-1961.94,0.00020547,2]
[370226695,1751917848933,-460.0,0.00020547,2]
[370226697,1751917848943,-1121.76,0.00020547,2]
[370226699,1751917848953,-460.0,0.00020547,2]
[370226701,1751917848963,-460.0,0.00020547,2]
[370226703,1751917848973,-166.696433,0.00020547,2]
[370226705,1751917848983,-166.696433,0.00020547,2]
[370226707,1751917848993,-460.0,0.00020547,2]
[370226710,1751917849004,-314.55,0.00020547,2]
[370226712,1751917849014,-772.99,0.00020547,2]
[370226714,1751917849024,-460.0,0.00020547,2]
[370226716,1751917849034,-909.79,0.00020547,2]
[370226718,1751917849044,-1136.17,0.00020547,2]
[370226732,1751917849168,-1463.16,0.00020547,2]
[370226734,1751917849178,-460.0,0.00020547,2]
[370226736,1751917849188,-460.0,0.00020547,2]
[370226738,1751917849197,-813.04,0.00020547,2]
[370226740,1751917849207,-1159.48,0.00020547,2]
[370226742,1751917849217,-460.0,0.00020547,2]
[370226744,1751917849226,-460.0,0.00020547,2]
[370226746,1751917849236,-547.67,0.00020547,2]
[370226748,1751917849245,-460.0,0.00020547,2]
[370226750,1751917849254,-151.0,0.00020547,2]
[370226752,1751917849264,-460.0,0.00020547,2]
[370226754,1751917849274,-460.0,0.00020547,2]
[370226756,1751917849283,-871.71,0.00020547,2]
[370226758,1751917849293,-904.53,0.00020547,2]
[370226760,1751917849302,-460.0,0.00020547,2]
[370226762,1751917849312,-460.0,0.00020547,2]
[370226764,1751917849321,-460.0,0.00020547,2]
[370226766,1751917849331,-460.0,0.00020547,2]
[370226768,1751917849340,-1153.31,0.00020547,2]
[370226770,1751917849350,-258.28,0.00020547,2]
[370226772,1751917849360,-460.0,0.00020547,2]
[370226774,1751917849369,-460.0,0.00020547,2]
[370226776,1751917849379,-1817.98,0.00020547,2]
[370226778,1751917849389,-2903.1,0.00020547,2]
[370226780,1751917849398,-151.0,0.00020547,2]
[370226782,1751917849407,-531.0,0.00020547,2]
[370226784,1751917849417,-460.0,0.00020547,2]
[370226786,1751917849427,-460.0,0.00020547,2]
[370226788,1751917849436,-527.16,0.00020547,2]
[370226790,1751917849446,-936.21,0.00020547,2]
[370226792,1751917849456,-1377.51,0.00020547,2]
[370226794,1751917849466,-460.0,0.00020547,2]
[370226796,1751917849476,-2456.52,0.00020547,2]
[370226798,1751917849486,-928.84,0.00020547,2]
[370226800,1751917849495,-366.64,0.00020547,2]
[370226802,1751917849504,-151.0,0.00020576,2]
[370226804,1751917849514,-151.0,0.00020576,2]
[370226806,1751917849523,-207.4,0.00020576,2]
[370226808,1751917849532,-151.0,0.00020576,2]
[370226810,1751917849541,-500.0,0.00020576,2]
[370226812,1751917849551,-500.0,0.00020576,2]
[370226814,1751917849560,-2666.04,0.000206,2]
[370226816,1751917849570,-716.195754,0.00020631,2]
[370226818,1751917849579,-464.34,0.0002064,2]
[370226820,1751917849589,-742.6949969,0.00020686,2]
[370226822,1751917849598,-770.17471178,0.00020741,2]
[370226824,1751917849608,-798.67117612,0.00020796,2]
[370226826,1751917849617,-151.0,0.00020821,2]
[370226828,1751917849626,-460.0,0.00020821,2]
[370226829,1751917849635,-192.85,0.00020821,2]
[370226831,1751917849645,-513.45,0.00020821,2]
[370226834,1751917849655,-460.0,0.00020821,2]
[370226836,1751917849665,-460.0,0.00020821,2]
[370226837,1751917849674,-245.2,0.00020821,2]
[370226839,1751917849683,-460.0,0.00020821,2]
[370226841,1751917849692,-460.0,0.00020821,2]
[370226844,1751917849702,-185.04,0.00020821,2]
[370226846,1751917849712,-460.0,0.00020821,2]
[370226848,1751917849721,-1961.94,0.00020821,2]
[370226849,1751917849731,-460.0,0.00020821,2]
[370226851,1751917849741,-1121.76,0.00020821,2]
[370226853,1751917849751,-401.8,0.00020821,2]
[370226855,1751917849760,-288.7,0.00020821,2]
[370226857,1751917849770,-460.0,0.00020821,2]
[370226859,1751917849779,-772.99,0.00020821,2]
[370226860,1751917849788,-594.63,0.00020821,2]
[370226861,1751917849797,-151.0,0.00020821,2]
[370226862,1751917849806,-909.79,0.00020821,2]
[370226864,1751917849816,-1136.17,0.00020821,2]
[370226866,1751917849825,-151.0,0.00020821,2]
[370226868,1751917849834,-1463.16,0.00020821,2]
[370226870,1751917849843,-404.37,0.00020821,2]
[370226872,1751917849856,-460.0,0.00020821,2]
[370226874,1751917849865,-813.04,0.00020821,2]
[370226876,1751917849874,-1159.48,0.00020821,2]
[370226878,1751917849884,-460.0,0.00020821,2]
[370226880,1751917849894,-253.88,0.00020821,2]
[370226882,1751917849904,-210.09,0.00020821,2]
[370226884,1751917849913,-460.0,0.00020821,2]
[370226886,1751917849922,-163.94,0.00020821,2]
[370226888,1751917849932,-871.71,0.00020821,2]
[370226890,1751917849942,-904.53,0.00020821,2]
[370226892,1751917849951,-460.0,0.00020821,2]
[370226894,1751917849961,-215.87,0.00020821,2]
[370226896,1751917849972,-460.0,0.00020821,2]
[370226898,1751917849982,-460.0,0.00020821,2]
[370226900,1751917849992,-1153.31,0.00020821,2]
[370226902,1751917850001,-460.0,0.00020821,2]
[370226904,1751917850011,-1817.98,0.00020821,2]
[370226906,1751917850020,-460.0,0.00020821,2]
[370226908,1751917850030,-2903.1,0.00020821,2]
[370226910,1751917850040,-531.0,0.00020821,2]
[370226912,1751917850051,-460.0,0.00020821,2]
[370226914,1751917850060,-460.0,0.00020821,2]
[370226916,1751917850071,-527.16,0.00020821,2]
[370226918,1751917850080,-936.21,0.00020821,2]
[370226920,1751917850090,-1377.51,0.00020821,2]
[370226923,1751917850100,-460.0,0.00020821,2]
[370226925,1751917850110,-2456.52,0.00020821,2]
[370226926,1751917850119,-928.84,0.00020821,2]
[370226929,1751917850129,-828.22200964,0.00020851,2]
[370226931,1751917850139,-150.0,0.00020858,2]
[370226933,1751917850148,-852.23329733,0.00020871,2]
[370226935,1751917850157,-314.0,0.0002089,2]
[370226937,1751917850167,-420.0,0.0002089,2]
[370226939,1751917850177,-2639.25284637,0.000209,4]
[370226941,1751917850187,-858.86622399,0.00020906,2]
[370226943,1751917850197,-890.64427428,0.00020961,2]
[370226945,1751917850206,-177.179882,0.00020975,2]
[370226947,1751917850215,-158.4,0.0002098,4]
[370226949,1751917850226,-1200.0,0.00020992,2]
[370226951,1751917850236,-923.59811243,0.00021016,2]
[370226953,1751917850246,-957.77124259,0.00021071,2]
[370226955,1751917850255,-2639.25284612,0.00021072,4]
[370226957,1751917850265,-155.0,0.00021095,2]
[370226959,1751917850274,-500.0,0.00021095,15]
[370226961,1751917850283,-151.0,0.00021095,2]
[370226963,1751917850292,-151.0,0.00021095,2]
[370226965,1751917850301,-151.0,0.00021095,2]
[370226967,1751917850311,-151.0,0.00021095,2]
[370226969,1751917850320,-151.0,0.00021095,2]
[370226971,1751917850331,-460.0,0.00021095,2]
[370226973,1751917850341,-243.070235,0.00021095,2]
[370226975,1751917850351,-243.070235,0.00021095,2]
[370226977,1751917850360,-460.0,0.00021095,2]
[370226979,1751917850370,-181.13,0.00021095,2]
[370226981,1751917850379,-460.0,0.00021095,2]
[370226983,1751917850390,-460.0,0.00021095,2]
[370226985,1751917850399,-460.0,0.00021095,2]
[370226987,1751917850408,-1961.94,0.00021095,2]
[370226988,1751917850418,-460.0,0.00021095,2]
[370226991,1751917850428,-1121.76,0.00021095,2]
[370226993,1751917850438,-460.0,0.00021095,2]
[370226995,1751917850447,-772.99,0.00021095,2]
[370226997,1751917850456,-909.79,0.00021095,2]
[370226998,1751917850466,-1136.17,0.00021095,2]
[370227000,1751917850476,-1463.16,0.00021095,2]
[370227002,1751917850485,-499.94,0.00021095,2]
[370227004,1751917850494,-813.04,0.00021095,2]
[370227006,1751917850504,-1159.48,0.00021095,2]
[370227009,1751917850513,-460.0,0.00021095,2]
[370227011,1751917850523,-477.72,0.00021095,2]
[370227013,1751917850532,-871.71,0.00021095,2]
[370227015,1751917850542,-904.53,0.00021095,2]
[370227017,1751917850551,-460.0,0.00021095,2]
[370227019,1751917850561,-460.0,0.00021095,2]
[370227021,1751917850570,-460.0,0.00021095,2]
[370227023,1751917850579,-1153.31,0.00021095,2]
[370227025,1751917850589,-460.0,0.00021095,2]
[370227027,1751917850598,-1817.98,0.00021095,2]
[370227029,1751917850607,-460.0,0.00021095,2]
[370227031,1751917850617,-2903.1,0.00021095,2]
[370227033,1751917850626,-531.0,0.00021095,2]
[370227035,1751917850638,-460.0,0.00021095,2]
[370227037,1751917850647,-460.0,0.00021095,2]
[370227038,1751917850656,-527.16,0.00021095,2]
[370227040,1751917850666,-936.21,0.00021095,2]
[370227042,1751917850675,-1377.51,0.00021095,2]
[370227044,1751917850684,-251.03,0.00021095,2]
[370227047,1751917850695,-2456.52,0.00021095,2]
[370227049,1751917850704,-928.84,0.00021095,2]
[370227051,1751917850714,-441.64589445,0.00021126,2]
[370227053,1751917850723,-993.20877856,0.00021126,2]
[370227055,1751917850732,-1029.95750337,0.00021181,2]
[370227057,1751917850742,-1068.065931,0.00021236,2]
[370227059,1751917850751,-2639.25284612,0.00021245,4]
[370227061,1751917850760,-874.8653626,0.00021291,2]
[370227063,1751917850770,-151.0,0.00021369,2]
[370227065,1751917850779,-244.665713,0.00021369,2]
[370227067,1751917850788,-244.665713,0.00021369,2]
[370227069,1751917850798,-151.0,0.00021369,2]
[370227071,1751917850807,-151.0,0.00021369,2]
[370227073,1751917850816,-460.0,0.00021369,2]
[370227075,1751917850825,-151.0,0.00021369,2]
[370227077,1751917850835,-151.0,0.00021369,2]
[370227079,1751917850845,-460.0,0.00021369,2]
[370227081,1751917850858,-602.541065,0.00021369,2]
[370227083,1751917850867,-602.541065,0.00021369,2]
[370227085,1751917850879,-460.0,0.00021369,2]
[370227087,1751917850889,-593.75,0.00021369,2]
[370227089,1751917850898,-151.0,0.00021369,2]
[370227091,1751917850908,-460.0,0.00021369,2]
[370227092,1751917850917,-1961.94,0.00021369,2]
[370227095,1751917850928,-460.0,0.00021369,2]
[370227097,1751917850939,-1121.76,0.00021369,2]
[370227099,1751917850948,-460.0,0.00021369,2]
[370227101,1751917850957,-772.99,0.00021369,2]
[370227103,1751917850967,-909.79,0.00021369,2]
[370227105,1751917850976,-1136.17,0.00021369,2]
[370227107,1751917850985,-245.119118,0.00021369,2]
[370227109,1751917850994,-1463.16,0.00021369,2]
[370227111,1751917851003,-245.119118,0.00021369,2]
[370227113,1751917851013,-813.04,0.00021369,2]
[370227115,1751917851022,-1159.48,0.00021369,2]
[370227117,1751917851031,-460.0,0.00021369,2]
[370227119,1751917851041,-871.71,0.00021369,2]
[370227121,1751917851050,-904.53,0.00021369,2]
[370227123,1751917851060,-219.46,0.00021369,2]
[370227125,1751917851069,-460.0,0.00021369,2]
[370227127,1751917851078,-460.0,0.00021369,2]
[370227129,1751917851088,-1153.31,0.00021369,2]
[370227131,1751917851097,-460.0,0.00021369,2]
[370227133,1751917851107,-1817.98,0.00021369,2]
[370227135,1751917851116,-460.0,0.00021369,2]
[370227137,1751917851125,-2903.1,0.00021369,2]
[370227139,1751917851136,-151.0,0.00021369,2]
[370227141,1751917851146,-531.0,0.00021369,2]
[370227143,1751917851155,-428.9,0.00021369,2]
[370227145,1751917851164,-460.0,0.00021369,2]
[370227147,1751917851174,-527.16,0.00021369,2]
[370227149,1751917851183,-936.21,0.00021369,2]
[370227151,1751917851193,-1377.51,0.00021369,2]
[370227153,1751917851202,-2456.52,0.00021369,2]
[370227155,1751917851212,-928.84,0.00021369,2]
[370227157,1751917851220,-151.0,0.00021417,2]
[370227159,1751917851230,-2639.25284612,0.00021417,5]
[370227161,1751917851239,-158.4,0.00021432,5]
[370227163,1751917851248,-967.0,0.00021491,2]
[370227165,1751917851258,-2153.0,0.00021491,2]
[370227167,1751917851267,-646.0,0.00021491,2]
[370227169,1751917851276,-403.57,0.00021491,2]
[370227171,1751917851285,-429.128,0.00021491,2]
[370227173,1751917851294,-2639.25284612,0.0002159,5]
[370227175,1751917851303,-151.0,0.0002159,2]
[370227177,1751917851312,-151.0,0.0002159,2]
[370227179,1751917851321,-151.0,0.0002159,2]
[370227181,1751917851331,-151.0,0.0002159,2]
[370227183,1751917851340,-151.0,0.0002159,2]
[370227185,1751917851349,-852.23329733,0.00021631,2]
[370227187,1751917851358,-12889.33866,0.00021642,2]
[370227189,1751917851367,-500.0,0.00021643,16]
[370227202,1751917851468,-151.0,0.00021643,2]
[370227204,1751917851488,-151.0,0.00021643,2]
[370227206,1751917851498,-460.0,0.00021643,2]
[370227208,1751917851508,-151.0,0.00021643,2]
[370227210,1751917851517,-460.0,0.00021643,2]
[370227212,1751917851526,-259.101356,0.00021643,2]
[370227214,1751917851536,-278.291369,0.00021643,2]
[370227216,1751917851545,-259.101356,0.00021643,2]
[370227218,1751917851554,-278.291369,0.00021643,2]
[370227220,1751917851563,-460.0,0.00021643,2]
[370227222,1751917851572,-460.0,0.00021643,2]
[370227224,1751917851582,-1961.94,0.00021643,2]
[370227226,1751917851592,-460.0,0.00021643,2]
[370227228,1751917851601,-1121.76,0.00021643,2]
[370227230,1751917851611,-166.696433,0.00021643,2]
[370227232,1751917851621,-166.696433,0.00021643,2]
[370227234,1751917851630,-460.0,0.00021643,2]
[370227236,1751917851641,-772.99,0.00021643,2]
[370227239,1751917851650,-909.79,0.00021643,2]
[370227241,1751917851660,-1136.17,0.00021643,2]
[370227243,1751917851669,-1463.16,0.00021643,2]
[370227245,1751917851679,-813.04,0.00021643,2]
[370227247,1751917851688,-1159.48,0.00021643,2]
[370227249,1751917851697,-275.22,0.00021643,2]
[370227251,1751917851707,-871.71,0.00021643,2]
[370227253,1751917851716,-904.53,0.00021643,2]
[370227255,1751917851725,-460.0,0.00021643,2]
[370227257,1751917851734,-460.0,0.00021643,2]
[370227259,1751917851745,-1153.31,0.00021643,2]
[370227261,1751917851755,-460.0,0.00021643,2]
[370227263,1751917851764,-460.0,0.00021643,2]
[370227265,1751917851774,-1817.98,0.00021643,2]
[370227267,1751917851783,-2903.1,0.00021643,2]
[370227269,1751917851792,-531.0,0.00021643,2]
[370227271,1751917851802,-460.0,0.00021643,2]
[370227273,1751917851811,-527.16,0.00021643,2]
[370227275,1751917851821,-936.21,0.00021643,2]
[370227277,1751917851830,-1377.51,0.00021643,2]
[370227279,1751917851839,-2456.52,0.00021643,2]
[370227281,1751917851849,-928.84,0.00021643,2]
[370227283,1751917851860,-156.5140099,0.00021671,2]
[370227285,1751917851870,-3528.31450929,0.000217,2]
[370227287,1751917851879,-151.0,0.000217,4]
[370227289,1751917851890,-151.0,0.000217,4]
[370227291,1751917851899,-2639.25284612,0.00021762,5]
[370227293,1751917851908,-2410.0,0.00021779,2]
[370227295,1751917851920,-151.0,0.00021779,2]
[370227297,1751917851930,-151.0,0.00021779,2]
[370227299,1751917851940,-151.0,0.00021779,2]